Cogmind - Beta 13 @@@ ROGUE MODE // 2024.04.13 @ 18:03:02 Player: Cracklepappy Result: Destroyed by G-47 Trooper with Particle Gun Performance ------------- Evolutions (2) 1000 Regions Visited (8) 1600 Robots Destroyed (225) 1125 Value Destroyed (8773) 8773 Prototype IDs (11) 220 Alien Tech Used (0) 0 Bonus (723) 723 TOTAL SCORE: 13441 Bonus ------- High Alert Combat Kills 1813 Follower Combat Kills 42 Entered Garrisons 400 Friendly Fire -1532 Cogmind --------- Core Integrity 0/550 Matter 151/300 Energy 290/290 System Corruption 6% Temperature Warm (135) Movement Treading (240) Ox1 Location -8/Materials Parts ------- > --- POWER (1) -------- Improved Deuterium Engine > --- PROPULSION (4) --- Light Treads Light Treads Light Treads Light Treads > --- UTILITY (3) ------ Huge Storage Unit Hardened Heavy Armor Plating > --- WEAPON (3) ------- Heavy Assault Rifle Heavy Assault Rifle Improved Assault Rifle > --- INVENTORY (25) --- Micro Nuclear Core Light Treads Advanced Treads Improved VTOL Module Improved VTOL Module Improved VTOL Module Improved VTOL Module Improved Heat Sink Improved Cooling System Improved Cooling System Advanced Terrain Scan Processor Advanced Targeting Computer Advanced Targeting Computer Improved Medium Armor Plating Hardlight Generator Makeshift Hacking Suite Long-range Tractor Beam Heavy EM Shotgun Heavy EM Shotgun Heavy EM Shotgun Improved Light Cannon Missile Launcher Missile Launcher Missile Launcher Makeshift Hammer Peak State ------------ > --- POWER ------------ Improved Deuterium Engine > --- PROPULSION ------- Light Treads Improved Treads Improved Treads Advanced Treads > --- UTILITY ---------- Huge Storage Unit Hardened Heavy Armor Plating > --- WEAPON ----------- Improved Assault Rifle Minigun Advanced EMP Blaster > --- INVENTORY -------- Improved Deuterium Engine Improved Deuterium Engine Light Treads Light Treads Light Treads Light Treads Advanced Heat Sink Advanced Terrain Scan Processor Hardened Heavy Armor Plating Hardened Heavy Armor Plating Hardened Heavy Armor Plating Hardlight Generator Makeshift Hacking Suite Ion Cannon Heavy Assault Rifle Battle Rifle Improved Light Cannon Assault Cannon Missile Launcher Missile Launcher Makeshift Hammer Shrapnel Trap [Rating: 38] Favorites ----------- Power Improved Ion Engine Engine Improved Ion Engine Power Core Nuclear Core Propulsion Light Treads Treads Light Treads Leg Aluminum Leg Wheel Compact Wheel Hover Unit Aerolev Unit Flight Unit Improved VTOL Module Utility Huge Storage Unit Device Hardlight Generator Storage Huge Storage Unit Processor Advanced Targeting Computer Protection Hardened Heavy Armor Plating Weapon Improved Assault Rifle Energy Gun Subdweller Laser Energy Cannon Subdweller Beam Cannon Ballistic Gun Improved Assault Rifle Ballistic Cannon Light Cannon Launcher Grenade Launcher Impact Weapon Makeshift Hammer Build | -11 -10 -10 -10 -8 -8 -8 -8 -8 ------- Run | Yrd Mat Min Sub Mat Gar Mat Gar Mat Slots Evolved 4 | . . . . 4 . . . . Power . | . . . . . . . . . Propulsion 2 | . . . . 2 . . . . Utility 1 | . . . . 1 . . . . Weapon 1 | . . . . 1 . . . . Parts Attached 232 | 8 14 11 37 54 10 51 37 10 Power 13 | 1 1 1 . 7 . 1 1 1 Engine 11 | 1 1 1 . 5 . 1 1 1 Core 2 | . . . . 2 . . . . Reactor . | . . . . . . . . . Propulsion 52 | 3 3 2 1 17 1 15 7 3 Treads 44 | 2 3 1 1 12 1 14 7 3 Leg 3 | . . . . 3 . . . . Wheel 3 | 1 . 1 . 1 . . . . Hover 1 | . . . . 1 . . . . Flight 1 | . . . . . . 1 . . Utility 42 | 2 3 . 11 8 . 8 9 1 Device 12 | 1 . . 1 2 . 3 5 . Storage 5 | 1 1 . 3 . . . . . Processor 1 | . . . . . . . 1 . Hackware . | . . . . . . . . . Protection 24 | . 2 . 7 6 . 5 3 1 Artifact . | . . . . . . . . . Weapon 125 | 2 7 8 25 22 9 27 20 5 Energy Gun 7 | . 1 . . 4 . 1 1 . Energy Cannon 10 | . . . 9 1 . . . . Ballistic Gun 51 | 2 2 2 1 13 4 15 9 3 Ballistic Cannon 15 | . 3 4 6 . . . 2 . Launcher 19 | . 1 1 4 3 . 6 2 2 Special Weapon . | . . . . . . . . . Impact Weapon 23 | . . 1 5 1 5 5 6 . Slashing Weapon . | . . . . . . . . . Piercing Weapon . | . . . . . . . . . Special Melee Weapon . | . . . . . . . . . Unidentified Prototypes 8 | . . 1 . 5 . 2 . . Parts Lost 16 | . 2 . 2 6 . 2 3 1 Power 1 | . . . . 1 . . . . Propulsion 6 | . . . 1 2 . 2 . 1 Utility 4 | . 1 . 1 2 . . . . Weapon 5 | . 1 . . 1 . . 3 . Highest Loss Streak 3 | . 1 . 1 3 . 1 1 1 To Critical Strikes 1 | . . . 1 . . . . . Average Slot Usage (%) 92 | . 99 100 91 92 90 89 91 90 Engine 10 | . 14 14 14 4 9 9 8 9 Treads 31 | . 27 26 28 33 36 35 36 36 Device 1 | . 1 . . 2 . . 3 . Storage 8 | . 14 14 6 9 9 9 9 9 Protection 10 | . 12 14 13 8 9 8 7 8 Energy Cannon 8 | . . . 23 1 . . . . Ballistic Gun 13 | . 15 1 . 25 24 25 19 26 Ballistic Cannon 3 | . 11 23 2 . . . 4 . Impact Weapon 1 | . . 2 1 . 2 . 2 . Naked Turns . | . . . . . . . . . Heaviest Build 128 | 13 96 96 106 119 119 128 120 119 Greatest Support 88 | 40 40 40 40 88 88 88 80 80 Greatest Overweight (x) 9 | . 4 9 2 7 1 1 1 1 Average Overweight (x) 1 | . 1 3 1 1 1 1 1 1 Largest Inventory Capacity 25 | 8 25 25 25 25 25 25 25 25 Average Capacity 21 | 7 24 25 13 25 25 25 25 25 Most Carried 25 | 8 25 25 25 25 25 25 25 25 Average Carried 20 | 5 20 24 12 24 25 24 24 24 Final Capacity 25 | 8 25 25 25 25 25 25 25 25 Final Carried 25 | 8 25 25 25 25 25 25 25 25 Class Distribution -------------------- 40% | Mutant 24% | Tank 16% | Subdweller-Mutant 15% | Scavenger-Tank Dominant Class ---------------- Mutant | -10/Materials Mutant | -10/Mines Mutant | -10/Subcaves Scavenger-Tank | -8/Materials Tank | -8/Garrison Tank | -8/Materials Tank | -8/Garrison Scavenger-Tank | -8/Materials Resources | -11 -10 -10 -10 -8 -8 -8 -8 -8 ----------- Run | Yrd Mat Min Sub Mat Gar Mat Gar Mat Matter Collected 6945 | 250 686 201 730 1203 787 1461 1203 424 Remotely 255 | . . . . . . 196 59 . Salvage Created 8257 | 120 1021 177 670 1721 1250 1803 803 692 Parts 489 | 10 71 14 31 97 66 110 45 45 Haulers Intercepted 12 | . 1 . . 6 . 5 . . Recyclers Shooed 6 | . . . . 3 . 2 . 1 Parts Field Recycled . | . . . . . . . . . Retrieved Matter . | . . . . . . . . . Parts Self-Destructed 7 | . . . 7 . . . . . Prevented . | . . . . . . . . . Kills | -11 -10 -10 -10 -8 -8 -8 -8 -8 ------- Run | Yrd Mat Min Sub Mat Gar Mat Gar Mat Combat Hostiles Destroyed 169 | . 23 . 15 32 31 30 22 16 Melee 3 | . . . . . . 2 1 . Guns 117 | . 13 . . 24 31 22 14 13 Cannons 20 | . 7 . 10 1 . . 2 . AOE 28 | . 3 . 5 6 . 6 5 3 Classes Destroyed 19 | 2 6 1 2 2 3 1 2 . Worker 5 | . 2 . . 1 . 1 . 1 Builder 9 | . . 4 . . . 5 . . Tunneler 3 | 2 . 1 . . . . . . Hauler 12 | . 1 . . 6 . 5 . . Recycler 5 | 1 1 . . 1 . 1 . 1 Mechanic 4 | . . . . 1 . 2 . 1 Operator 4 | . 2 . . 1 . . . 1 Watcher 13 | . 3 . . 4 . 4 . 2 Swarmer 32 | . 3 . . 9 11 3 3 3 Cutter 3 | . . . . . . . 3 . Grunt 78 | . 20 . 2 16 13 13 6 8 Brawler 3 | . . . . . . 2 1 . Duelist 8 | . . . . . 1 5 1 1 Sentry 24 | . . . . 7 2 5 6 4 Specialist 1 | . . . . . . . 1 . Hunter 4 | . . . . . 1 2 1 . Programmer 3 | . . . . . 3 . . . Cobbler 1 | . . . 1 . . . . . Subdweller 13 | . . . 13 . . . . . Best Kill Streak 8 | 3 3 1 3 7 4 8 3 5 Combat Bots Only 6 | . 3 . 3 6 4 4 3 3 Max Kills in Single Turn 6 | 1 3 1 2 3 2 6 2 3 Gunslinging 1 | . . . . . 1 1 . 1 Exploded 3 | . 3 . 2 3 . 2 2 2 Melee 1 | . . . . . . 1 1 . Uniques/NPCs Destroyed 1 | . . 1 . . . . . . YI-UF0 (-10/Mines) Combat | -11 -10 -10 -10 -8 -8 -8 -8 -8 -------- Run | Yrd Mat Min Sub Mat Gar Mat Gar Mat Hostile Shots Fired 707 | . 92 . 49 132 115 131 122 66 Missed 199 | . 24 . 12 39 37 35 31 21 Damage Taken 8076 | . 753 . 976 1362 1104 1765 1513 603 Core 807 | . 99 . 150 196 95 114 100 53 Absorbed by Shields 48 | . . . . 48 . . . . Regen/Repaired (Parts) 431 | . 322 . . 57 . 52 . . Core Remaining (%) 50 | 100 . . . . . . . . Volleys Fired 508 | 4 71 23 52 97 56 90 71 44 Largest 3 | 2 2 2 2 3 3 3 3 3 Hottest 240 | 40 70 40 160 240 71 108 85 72 Shots Fired 1277 | 8 140 45 105 275 166 246 163 129 Gun 1064 | 8 103 44 . 251 166 234 135 123 Cannon 167 | . 36 1 86 20 . . 24 . Launcher 46 | . 1 . 19 4 . 12 4 6 Special . | . . . . . . . . . Kinetic 1114 | 8 137 45 9 233 166 234 159 123 Thermal 117 | . 2 . 77 38 . . . . Explosive 46 | . 1 . 19 4 . 12 4 6 Electromagnetic . | . . . . . . . . . Robot Hit Streak 34 | 2 23 18 23 19 14 23 34 14 Robot Miss Streak 6 | 2 4 2 3 6 3 4 2 2 Penetration Max . | . . . . . . . . . Secondary Targets 15 | . . . . 1 10 2 1 1 Max Gunslinging Chain 1 | . . . . 1 1 1 1 1 Shots Hit Robots 849 | 3 102 41 65 164 118 163 108 85 Core Hits 396 | 3 46 10 25 77 55 93 40 47 Critical Kills 6 | 2 . . 1 2 1 . . . Critical Parts Destroyed 3 | . . . . 1 1 1 . . Critical Strikes 11 | 2 1 . 1 3 2 1 1 . Meltdown 2 | . . . 1 1 . . . . Destroy 6 | 2 . . . 2 1 1 . . Blast 2 | . 1 . . . . . 1 . Smash 1 | . . . . . 1 . . . Melee Attacks 96 | . . 14 35 1 17 9 20 . Impact 96 | . . 14 35 1 17 9 20 . Slashing . | . . . . . . . . . Piercing . | . . . . . . . . . Sneak Attacks 5 | . . 5 . . . . . . Combat Hostiles . | . . . . . . . . . Follow-up Attacks . | . . . . . . . . . Damage Inflicted 17959 | 36 1580 761 2174 3281 1967 3813 2091 2256 Guns 10992 | 36 1080 353 . 2543 1903 2395 1463 1219 Cannons 2248 | . 373 15 1382 266 . . 212 . Explosions 4125 | . 121 . 792 465 . 1318 407 1022 Melee 552 | . . 392 . . 64 96 . . Ramming 42 | . 6 1 . 7 . 4 9 15 Kinetic 11474 | 36 1440 368 125 2313 1903 2395 1675 1219 Thermal 1766 | . 13 . 1257 496 . . . . Explosive 4125 | . 121 . 792 465 . 1318 407 1022 Electromagnetic . | . . . . . . . . . Impact 552 | . . 392 . . 64 96 . . Slashing . | . . . . . . . . . Piercing . | . . . . . . . . . Highest Corruption 6 | . 2 2 2 . 3 6 6 6 Average Corruption 3 | . 2 2 2 . 2 4 6 6 Corruption Purged . | . . . . . . . . . Corruption Blocked . | . . . . . . . . . Effects 284 | . 25 14 89 . 22 51 72 11 Message Errors 84 | . 7 6 22 . 3 19 20 7 Matter Fused 64 | . 8 2 12 . 7 16 17 2 Heat Flow Errors 30 | . 3 1 10 . 3 5 8 . Energy Discharges 32 | . 3 2 14 . 4 4 5 . Parts Rejected 1 | . . . . . . . 1 . Parts Fused 3 | . . . 2 . 1 . . . Data Loss (minor) 40 | . 3 3 16 . 3 4 9 2 Data Loss (major) 14 | . 1 . 6 . 1 1 5 . Misfires 10 | . . . 5 . . 1 4 . Alerts 5 | . . . 2 . . 1 2 . Weapon Failures 1 | . . . . . . . 1 . Overload Shots . | . . . . . . . . . Overflow Damage 412 | . 30 102 . 37 64 44 51 84 Projectiles 26 | . . . . 26 . . . . Explosions 220 | . 30 . . 11 . 44 51 84 Melee 166 | . . 102 . . 64 . . . Knockbacks 6 | . 5 1 . . . . . . Impact 1 | . . 1 . . . . . . Kinetic 4 | . 4 . . . . . . . Secondary 1 | . 1 . . . . . . . Self-Inflicted Damage 247 | . . . . . . 193 54 . Shots 5 | . . . . . . 4 1 . Rammed 8 | . 1 1 . . . 1 3 2 Targets Rammed 11 | . 1 1 . 1 . 2 4 2 Kicked . | . . . . . . . . . Crushed 3 | . . . . 1 . 1 1 . Highest Temperature 689 | . 281 214 260 689 248 486 422 175 Average Temperature 88 | . 42 32 74 77 86 93 145 61 Received Heat Transfer 2932 | . 375 . 198 595 315 522 576 351 Effects 38 | . 3 . . 12 . 10 13 . Shutdowns 7 | . . . . 2 . 2 3 . Energy Bleed 4 | . 1 . . . . 1 2 . Interference 8 | . 2 . . 1 . 5 . . Matter Decay 5 | . . . . . . 1 4 . Short Circuit 5 | . . . . 1 . 1 3 . Damage (minor) 1 | . . . . . . . 1 . Damage (major) 7 | . . . . 7 . . . . Damage (core) 1 | . . . . 1 . . . . Siege Activations . | . . . . . . . . . Robots Corrupted . | . . . . . . . . . Combat Hostiles . | . . . . . . . . . Parts Fried 2 | . . 1 . . 1 . . . Impact Corruptions 6 | . . 5 . . 1 . . . Robots Melted 2 | . . . 1 1 . . . . Combat Hostiles 2 | . . . 1 1 . . . . Parts Melted 5 | . . . 2 3 . . . . Heat Transferred 2372 | . 25 . 1702 645 . . . . Parts Sabotaged . | . . . . . . . . . Parts Stolen . | . . . . . . . . . Parts Stripped . | . . . . . . . . . Power Chain Reactions . | . . . . . . . . . Alert | -11 -10 -10 -10 -8 -8 -8 -8 -8 ------- Run | Yrd Mat Min Sub Mat Gar Mat Gar Mat Peak Influence 1866 | 15 280 106 . 401 1606 1081 1866 1243 Initial 909 | . 9 106 . 16 . 782 684 909 Average 559 | 4 154 40 . 146 812 831 1257 1086 Maximum Alert Level 5 | . 1 . . 2 5 3 5 4 Low Security (%) 35 | 100 61 100 . 65 7 . . . Level 1 17 | . 38 . . 33 18 . . . Level 2 4 | . . . . 1 14 13 . . Level 3 24 | . . . . . 24 86 31 49 Level 4 15 | . . . . . 33 . 56 50 Level 5 2 | . . . . . 2 . 11 . High Security . | . . . . . . . . . Max Security . | . . . . . . . . . Squads Dispatched 21 | . 7 . . 6 . 5 . 3 Investigation 6 | . 5 . . 1 . . . . Extermination . | . . . . . . . . . Reinforcement 8 | . 2 . . 2 . 2 . 2 Assault 4 | . . . . . . 3 . 1 Garrison 3 | . . . . 3 . . . . Intercept . | . . . . . . . . . Searches Triggered . | . . . . . . . . . Construction Impeded . | . . . . . . . . . Haulers Reinforced . | . . . . . . . . . Active Scanning Responses . | . . . . . . . . . Cargo Convoy Interrupts . | . . . . . . . . . Stealth | -11 -10 -10 -10 -8 -8 -8 -8 -8 --------- Run | Yrd Mat Min Sub Mat Gar Mat Gar Mat Distress Signals 15 | . 1 . . 8 . 3 . 3 Communications Jammed . | . . . . . . . . . Distress Signals . | . . . . . . . . . Times Spotted 238 | . 30 . 15 60 34 47 25 27 Peak Tracking Total 9 | . 4 . 2 9 4 5 5 4 Tactical Retreats 13 | . 4 . . 4 1 1 1 2 Traps | -11 -10 -10 -10 -8 -8 -8 -8 -8 ------- Run | Yrd Mat Min Sub Mat Gar Mat Gar Mat Traps Triggered 23 | . 4 . . . 9 2 8 . Indirectly . | . . . . . . . . . Trap Hack Attempts . | . . . . . . . . . Triggered . | . . . . . . . . . Disarmed . | . . . . . . . . . Reprogrammed . | . . . . . . . . . Reused . | . . . . . . . . . Traps Extracted . | . . . . . . . . . Installed . | . . . . . . . . . Triggered . | . . . . . . . . . Most Traps Carried 2 | . . . 2 2 1 1 . . Machines | -11 -10 -10 -10 -8 -8 -8 -8 -8 ---------- Run | Yrd Mat Min Sub Mat Gar Mat Gar Mat Machines Disabled 13 | . . . . 1 4 1 6 1 Max in Single Turn 1 | . . . . 1 1 1 1 1 Garrison Relay 9 | . . . . . 4 . 5 . Machines Repaired . | . . . . . . . . . Machines Dismantled . | . . . . . . . . . Machines Sabotaged . | . . . . . . . . . Overloaded Fab Kills . | . . . . . . . . . Hacking | -11 -10 -10 -10 -8 -8 -8 -8 -8 --------- Run | Yrd Mat Min Sub Mat Gar Mat Gar Mat Machines Accessed 38 | . 9 . . 12 3 10 3 1 Terminals 26 | . 6 . . 7 3 6 3 1 Fabricators . | . . . . . . . . . Repair Stations 3 | . 1 . . 1 . 1 . . Recycling Units 4 | . 2 . . 2 . . . . Scanalyzers 3 | . . . . 1 . 2 . . Garrison Access 2 | . . . . 1 . 1 . . Total Hacks 106 | . 30 . . 35 7 28 5 1 Successful 54 | . 16 . . 18 2 15 3 . Failed 52 | . 14 . . 17 5 13 2 1 Catastrophic 9 | . 3 . . 3 1 2 . . Database Lockouts . | . . . . . . . . . Manual 37 | . 17 . . 9 4 7 . . Terminals 66 | . 19 . . 19 7 15 5 1 Fabricators . | . . . . . . . . . Repair Stations 13 | . 6 . . 4 . 3 . . Recycling Units 9 | . 5 . . 4 . . . . Scanalyzers 16 | . . . . 7 . 9 . . Garrison Access 2 | . . . . 1 . 1 . . Terminal Hacks 19 | . 6 . . 6 . 4 3 . Part Schematic 1 | . 1 . . . . . . . Robot Analysis 2 | . 2 . . . . . . . Prototype ID Bank 1 | . 1 . . . . . . . Branch Access Points 1 | . . . . 1 . . . . Emergency Access Points 1 | . . . . . . . 1 . Terminal Index 1 | . . . . . . 1 . . Alert Level 1 | . . . . 1 . . . . Unreport Threat 4 | . . . . 3 . 1 . . Locate Traps 2 | . . . . 1 . 1 . . Hauler Manifests 1 | . 1 . . . . . . . Zone Layout 2 | . 1 . . . . 1 . . Patrol Navigation 1 | . . . . . . . 1 . Security Stations 1 | . . . . . . . 1 . Fabricator Hacks . | . . . . . . . . . Repair Station Hacks 11 | . 6 . . 3 . 2 . . Scan Component 6 | . 3 . . 2 . 1 . . Repair 5 | . 3 . . 1 . 1 . . Recycling Unit Hacks 3 | . 2 . . 1 . . . . Retrieve Components 3 | . 2 . . 1 . . . . Scanalyzer 15 | . . . . 7 . 8 . . Insert Component 7 | . . . . 3 . 4 . . Analyze 8 | . . . . 4 . 4 . . Garrison Access Hacks 2 | . . . . 1 . 1 . . Unlock Access 2 | . . . . 1 . 1 . . Unauthorized Hacks 4 | . 2 . . . 2 . . . Terminals 2 | . . . . . 2 . . . Sabotage 2 | . . . . . 2 . . . Fabricators . | . . . . . . . . . Repair Stations . | . . . . . . . . . Recycling Units 2 | . 2 . . . . . . . Tunnel 2 | . 2 . . . . . . . Scanalyzers . | . . . . . . . . . Garrison Access . | . . . . . . . . . Data Cores Recovered 1 | . . . . 1 . . . . Used . | . . . . . . . . . Hacking Detections 32 | . 8 . . 10 2 9 2 1 Full Trace Events 3 | . 1 . . 1 1 . . . Feedback Events . | . . . . . . . . . Feedback Blocked . | . . . . . . . . . Robot Schematics Acquired . | . . . . . . . . . Robots Built . | . . . . . . . . . Authchips . | . . . . . . . . . Time . | . . . . . . . . . Total Robot Build Rating . | . . . . . . . . . Part Schematics Acquired 7 | . 1 . . 3 . 3 . . Parts Built . | . . . . . . . . . Authchips . | . . . . . . . . . Time . | . . . . . . . . . Total Part Build Rating . | . . . . . . . . . Parts Repaired 5 | . 3 . . 1 . 1 . . Time 152 | . 78 . . 36 . 38 . . Parts Recycled . | . . . . . . . . . Recycled Matter . | . . . . . . . . . Retrieved Matter . | . . . . . . . . . Retrieved Components 22 | . 12 . . 10 . . . . Parts Scanalyzed 7 | . . . . 3 . 4 . . Part Schematics Acquired 6 | . . . . 3 . 3 . . Parts Damaged . | . . . . . . . . . Bothacking | -11 -10 -10 -10 -8 -8 -8 -8 -8 ------------ Run | Yrd Mat Min Sub Mat Gar Mat Gar Mat Used RIF Installer . | . . . . . . . . . Robots Hacked . | . . . . . . . . . Non-combat . | . . . . . . . . . Combat . | . . . . . . . . . Robot Hacks Applied . | . . . . . . . . . Relay Couplers Released 34 | . . . . . 15 . 19 . Machine Destruction 34 | . . . . . 15 . 19 . Fabnet Peak Effective % . | . . . . . . . . . Robots Rewired 3 | . . . . . . . 3 . Allies Hacked . | . . . . . . . . . Hacks Repelled . | . . . . . . . . . Allies | -11 -10 -10 -10 -8 -8 -8 -8 -8 -------- Run | Yrd Mat Min Sub Mat Gar Mat Gar Mat Total Allies 4 | . . . . . 1 . 3 . Largest Group 3 | . . . . . 1 . 3 . Highest-Rated Group 48 | . . . . . 31 . 48 . Highest-Rated Ally 31 | . . . . . 31 . 16 . Total Orders . | . . . . . . . . . Ally Attacks 21 | . . . . . 11 . 10 . Total Damage 202 | . . . . . 84 . 118 . Kills 2 | . . . . . 1 . 1 . Allies Corrupted . | . . . . . . . . . Allies Melted . | . . . . . . . . . Intel | -11 -10 -10 -10 -8 -8 -8 -8 -8 ------- Run | Yrd Mat Min Sub Mat Gar Mat Gar Mat Robot Analysis Total 2 | . 2 . . . . . . . Derelict Logs Recovered 3 | . . 1 2 . . . . . Drone Launches . | . . . . . . . . . Drone Recoveries . | . . . . . . . . . Exploration | -11 -10 -10 -10 -8 -8 -8 -8 -8 ------------- Run | Yrd Mat Min Sub Mat Gar Mat Gar Mat Turns Passed 23178 | 146 3004 1116 7747 3319 2453 2465 2376 552 Spaces Moved 7790 | 78 832 326 2755 1138 898 810 818 135 Core 9 | 9 . . . . . . . . Treads 7653 | 68 832 268 2755 1069 898 810 818 135 Legs . | . . . . . . . . . Wheels 128 | 1 . 58 . 69 . . . . Hover . | . . . . . . . . . Flight . | . . . . . . . . . Fastest Speed 50 | 50 160 215 160 175 236 236 240 240 Average Speed 257 | 146 307 301 265 235 236 239 241 240 Slowest Speed 480 | 160 480 320 340 240 236 242 242 240 Overloaded Moves . | . . . . . . . . . Propulsion Burnouts . | . . . . . . . . . Robots Hopped . | . . . . . . . . . Cave-ins Triggered . | . . . . . . . . . Exploration Rate (%) 64 | 4 99 65 93 77 81 68 75 20 Regions Visited 8 Branch Regions 2 Pre-discovered Areas 4 | . 2 . 2 . . . . . Known Exits Taken 2 | . . . . 1 . 1 . . Unknown Exits Taken 4 | 1 1 1 1 . . . . . Scrap Searched 16 | . . 1 15 . . . . . Spaces Dug 126 | . . . 27 12 3 71 13 . Terrain Destroyed 285 | . 7 . 79 47 3 90 27 32 Melee 25 | . . . 12 1 3 5 4 . Projectile 23 | . . . 15 7 . . 1 . AOE 237 | . 7 . 52 39 . 85 22 32 Terrain Rammed . | . . . . . . . . . Walls Destroyed . | . . . . . . . . . Machines Disabled . | . . . . . . . . . Actions | -11 -10 -10 -10 -8 -8 -8 -8 -8 --------- Run | Yrd Mat Min Sub Mat Gar Mat Gar Mat Total 9798 | 99 1135 391 3029 1588 1101 1133 1059 263 Wait 751 | . 185 9 44 187 103 112 50 61 Move 7783 | 77 831 325 2754 1138 896 810 817 135 Hop . | . . . . . . . . . Pick Up 175 | 10 25 4 54 47 1 23 6 5 Fast Attach 45 | 5 4 . 9 12 . 8 7 . Attach 41 | 2 2 . 6 16 . 7 6 2 Detach 12 | . . . 2 4 . 3 3 . Swap 146 | 1 8 11 22 26 10 36 24 8 Drop 166 | . 8 4 46 55 2 33 12 6 Fire 508 | 4 71 23 52 97 56 90 71 44 Melee 96 | . . 14 35 1 17 9 20 . Ram . | . . . . . . . . . Kick . | . . . . . . . . . Crush 11 | . 1 1 . 1 . 2 4 2 Escape Stasis 28 | . . . . . 16 . 12 . Rewire 27 | . . . . . . . 27 . Trap . | . . . . . . . . . Miscellaneous 9 | . . . 5 4 . . . . Route ------- -11/Scrapyard -10/Materials (discovered 4 exits: *Mat x3 / [*Min]) -10/Mines (discovered 3 exits: Mat / [*Exi] / [*Sub]) -10/Subcaves (discovered 2 exits: *Mat x2) -8/Materials (discovered 3 exits: [*Fac x2] / Gar) -8/Garrison (discovered 3 exits: *Mat x3) -8/Materials (discovered 3 exits: [*Fac x2] / Gar) -8/Garrison (discovered 3 exits: *Mat x3) -8/Materials History --------- Turn | Location | Event 51 | -11/Scrapyard | Discovered new exit (range 16) 147 | -11/Scrapyard | Entered Materials 308 | -10/Materials | Build established: Mutant 1082 | -10/Materials | Discovered new exit (range 10) 1289 | -10/Materials | Discovered new exit (range 9) 1649 | -10/Materials | Discovered new exit (range 16) 2499 | -10/Materials | Discovered new exit (range 16) 2614 | -10/Materials | Repaired Lgt. Treads 2642 | -10/Materials | Repaired Lgt. Treads 2669 | -10/Materials | Repaired Assault Rifle 3151 | -10/Materials | Entered Mines 3161 | -10/Mines | YI-UF0 nonchalantly dropped a Grenade Launcher on the ground 3220 | -10/Mines | Murdered YI-UF0 3220 | -10/Mines | Destroyed YI-UF0 3270 | -10/Mines | Found Prototype Launcher 3271 | -10/Mines | Identified YI-UF0's Doublenader 3471 | -10/Mines | Deemed a non-threat by the Exiles lab entrance 3471 | -10/Mines | Discovered new exit (range 5) 3692 | -10/Mines | Identified exit to Materials 4140 | -10/Mines | Discovered new exit (range 4) 4267 | -10/Mines | Entered Subcaves 4429 | -10/Subcaves | Core integrity fell below 50% 4873 | -10/Subcaves | Learned location of Zion (-6) 4878 | -10/Subcaves | A swath of the cavern ceiling suddenly collapsed 6081 | -10/Subcaves | Ambushed by Subdwellers from Twisted Machinery 6102 | -10/Subcaves | Core integrity fell below 20% 6227 | -10/Subcaves | Shifting Twisted Machinery released Sub. Laser 6254 | -10/Subcaves | Shifting Twisted Machinery released Piercing Trap 6381 | -10/Subcaves | Shifting Twisted Machinery released Mak. Hacking Suite 6437 | -10/Subcaves | Build established: Subdweller-Mutant 6496 | -10/Subcaves | Discovered new exit (range 15) 6565 | -10/Subcaves | Discovered new exit (range 15) 6606 | -10/Subcaves | Shifting Twisted Machinery released Enh. Flamer 7599 | -10/Subcaves | Build established: Mutant 8079 | -10/Subcaves | Build established: Subdweller-Mutant 9820 | -10/Subcaves | Build established: Mutant 10129 | -10/Subcaves | Shifting Twisted Machinery released Sub. Machine Gun 10186 | -10/Subcaves | Shifting Twisted Machinery released Piercing Trap 10234 | -10/Subcaves | Build established: Subdweller-Mutant 11269 | -10/Subcaves | Build established: Mutant 12014 | -10/Subcaves | Entered Materials 12014 | -8/Materials | Evolved 4 slots: Propulsion x2, Utility x1, Weapon x1 12217 | -8/Materials | Garrison activated, responded to threat 12246 | -8/Materials | Lost 3 parts (1p1n1w) 12562 | -8/Materials | Build established: Scavenger-Tank 12682 | -8/Materials | Discovered new exit (range 16) 13168 | -8/Materials | Discovered new exit (range 8) 13248 | -8/Materials | Repaired Broken Lgt. Treads 14831 | -8/Materials | Build established: Tank 15333 | -8/Materials | Identified exit to Garrison 15333 | -8/Materials | Entered Garrison 15343 | -8/Garrison | Triggered checkpoint 15960 | -8/Garrison | Discovered new exit (range 9) 16084 | -8/Garrison | Garrison Relay disabled 16163 | -8/Garrison | Rescued a captive Derelict 16413 | -8/Garrison | Discovered new exit (range 12) 16483 | -8/Garrison | Triggered checkpoint 16522 | -8/Garrison | Garrison Relay disabled 16709 | -8/Garrison | Triggered checkpoint 16817 | -8/Garrison | Garrison Relay disabled 16919 | -8/Garrison | Core integrity fell below 50% 17050 | -8/Garrison | Discovered new exit (range 13) 17462 | -8/Garrison | Garrison Relay disabled 17507 | -8/Garrison | Build established: Mutant 17586 | -8/Garrison | Attempted to access garrison exit controls, blocked by remote lockdown 17786 | -8/Garrison | Entered Materials 18085 | -8/Materials | Build established: Tank 18186 | -8/Materials | First assault squad dispatched 18778 | -8/Materials | Build established: Scavenger-Tank 18814 | -8/Materials | Repaired Missile Launcher 18860 | -8/Materials | Discovered new exit (range 10) 19638 | -8/Materials | Build established: Tank 19870 | -8/Materials | Discovered new exit (range 16) 20251 | -8/Materials | Identified exit to Garrison 20251 | -8/Materials | Entered Garrison 20256 | -8/Garrison | Triggered checkpoint 20435 | -8/Garrison | Triggered checkpoint 20464 | -8/Garrison | Garrison Relay disabled 20871 | -8/Garrison | Discovered new exit (range 8) 20958 | -8/Garrison | Triggered checkpoint 20985 | -8/Garrison | Core integrity fell below 20% 21047 | -8/Garrison | Garrison Relay disabled 21258 | -8/Garrison | Discovered new exit (range 10) 21314 | -8/Garrison | Learned Materials security intel 21323 | -8/Garrison | Triggered checkpoint 21385 | -8/Garrison | Triggered checkpoint 21456 | -8/Garrison | Garrison Relay disabled 21760 | -8/Garrison | Build established: Mutant 21883 | -8/Garrison | Triggered checkpoint 21907 | -8/Garrison | Triggered checkpoint 22030 | -8/Garrison | Discovered new exit (range 9) 22075 | -8/Garrison | Build established: Tank 22109 | -8/Garrison | Triggered checkpoint 22160 | -8/Garrison | Lost 3 allies 22235 | -8/Garrison | Garrison Relay disabled 22527 | -8/Garrison | Triggered checkpoint 22564 | -8/Garrison | Garrison Relay disabled 22627 | -8/Garrison | Entered Materials 22936 | -8/Materials | Build established: Scavenger-Tank 23027 | -8/Materials | First assault squad dispatched 23179 | -8/Materials | Destroyed by G-47 Trooper with Particle Gun Last Messages --------------- 23137_ U-05 Engineer lays Concrete. 23138_ K-01 Serf collects debris. 23139_ U-05 Engineer builds a Wall. 23140_ K-01 Serf collects debris. 23143_ U-05 Engineer lays Concrete. 23146_ K-01 Serf collects debris. 23146_ U-05 Engineer lays Concrete. 23151_ K-01 Serf collects debris. 23151_ G-47 Trooper destroyed. 23154_ Acquired 42 matter. 23154_ K-01 Serf collects debris. 23155_ U-05 Engineer lays Concrete. 23158_ K-01 Serf collects debris. 23165_ U-05 Engineer builds a Wall. 23167_ K-01 Serf collects debris. 23172_ K-01 Serf destroyed. 23174_ K-01 Serf collects debris. 23175_ Critical hit (Burn: +37). 23177_ K-01 Serf collects debris. 23178_ Destroyed Lgt. Nuclear Core. Map ----- +----------------------------------------------------+ | ?????????????????????????????????????????????????? | | ?????????????????????????????????????????????????? | | ?????????????? ????????????????????????????????? | | ?????????????? ????????????????????????????????? | | ?????????????? ????????????????????????????????? | | ?????????????? ????????????????????????????????? | | ?#???????????? ????????????????????????????????? | | ##??????????? ????????????????????????????????? | | ??????????? ????????????????????????????????? | | ??????????? ????????????????????????????????? | | #?????????? ????????????????????????????????? | | #?????????? ????????????????????????????????? | | ???????????# #????????????????????????????????? | | ###???????????# #????????????????????????????????? | | ""#???????????# #????????????????????????????????? | | T"#???????????# #????????????????????????????????? | | ""#??????????## ##???#####???????????????????????? | | ########?????#[* ##### #???????????????????????? | | ?# ####### == ] #???????????????????????? | | ## !![%!!!##### #???????????????????????? | | % ###########???## ##???????????????????????? | | ## #??????????????# #?##?????????????????????? | | ?# #??????????????# ## ######????????????????? | | ?###+###????????#####?#!# # # ##???????????????? | | ?? ?????????#== ###%#### #???????????????? | | # """ #???????#== ==@###### #####???????????? | | # """ #???????#!! [ =g= *%% ???????? | | # """ #???????#! [ ! g% ! ???????? | | # #???????#* * k = u ???????? | | # ! #???????#** ###+### #######????????? | | ########???????########### ????????????? | | #???????????????????????# ???????????? | | ?#????????????????????????# """ "????????????? | | ??????????????????????????? """??????????????? | | ??????????????????????????? """??????????????? | | ??????????????????????????? ???????????????? | | ???????????????????????????########??????????????? | | | | | | | | | | | | | | | | | | | | | | | | | | | +----------------------------------------------------+ Best States ------------- Heat Dissipation 72 Coolant Potential 50 Energy Generation 18 Energy Capacity 290 Matter Stores 300 Matter Capacity 300 Sight Range 16 Terrain Scan Density 10 Armor Coverage 800 Propulsion Shielding 33 Evasion (%) 40 Recoil Reduction 4 Item Schematics ----------------- Huge Storage Unit | -10/Materials | Hacked Hrd. Heavy Armor Plating | -8/Materials | Scanalyzed Lgt. Treads | -8/Materials | Scanalyzed Adv. Terrain Scan Processor | -8/Materials | Scanalyzed Mak. Hacking Suite | -8/Materials | Scanalyzed Imp. VTOL Module | -8/Materials | Scanalyzed Mak. Hammer | -8/Materials | Scanalyzed Robot Schematics ------------------ None Fabricated ------------ Nothing Alien Tech Used ----------------- None Achievements -------------- None Challenges ------------ None Game ------ Seed ZioniteZioniteMonowheel Manual? 0 Play Time 01:51:07 Cumulative 585.5 hours Start 2024.04.13 @ 15:44:37 End 2024.04.13 @ 18:03:02 Sessions 2 Manual Loads 0 Difficulty Rogue Special Mode None Game No. 398 Rogue 398 Adventurer 0 Explorer 0 Win Type - Total 18 Types 9/3/2/0/0/1/2/1/0 Lore% 82 Gallery% 90 Achievement% 80 Wizard Run 0 Options --------- Layout 0 ASCII 0 Keyboard 0 Movement Numpad Keybinds 0 Fullscreen 2 Font 24/Smallcaps Map View 76x50 Zoom Use 0% Tactical HUD 1 Map Filters NONE Filters NONE Steam 1 RUN: 9b10bcea-c43e-404a-887c-a05e21ff1d8a